bitfinex/quotes_SOLUSD_20250712
["timestamp","ask_amount","ask_price","bid_price","bid_amount"]
[1752348692128,0.74,160.25,160.21,31.66]
[1752348693121,0.74,160.25,160.19,0.2]
[1752348693530,0.74,160.25,160.19,0.87]
[1752348693730,0.74,160.25,160.2,0.67]
[1752348694329,0.74,160.25,160.21,31.62]
[1752348694713,0.74,160.25,160.21,32.29]
[1752348695608,0.74,160.25,160.22,0.67]
[1752348697741,0.03,160.25,160.22,0.67]
[1752348697914,0.03,160.25,160.23,0.66]
[1752348700228,0.03,160.25,160.21,31.62]
[1752348700411,0.03,160.25,160.24,0.66]
[1752348701916,0.03,160.25,160.23,0.66]
[1752348704029,0.03,160.25,160.21,32.24418076]
[1752348704233,0.03,160.25,160.24,0.66]
[1752348705338,0.03,160.25,160.22,0.66]
[1752348711351,0.03,160.25,160.23,0.66]
[1752348718762,0.03,160.25,160.24,0.66]
[1752348719242,0.03,160.25,160.21,32.24418076]
[1752348719444,0.03,160.25,160.23,0.66]
[1752348726367,0.03,160.25,160.24,0.6240639]
[1752348726757,0.03,160.25,160.24,1.2840639]
[1752348728875,0.03,160.25,160.24,26.10804787]
[1752348729062,0.03,160.25,160.24,124.10804787]
[1752348729255,0.03,160.25,160.24,123.48398397]
[1752348729457,0.03,160.25,160.24,155.04398397]
[1752348730167,0.03,160.25,160.24,157.9735482]
[1752348730350,0.03,160.25,160.24,176.6935482]
[1752348730956,0.03,160.26,160.25,48.4342482]
[1752348731157,0.03,160.26,160.25,49.71827316]
[1752348731361,0.03,160.26,160.25,46.78870893]
[1752348731551,0.03,160.26,160.25,49.71827316]
[1752348731765,0.03,160.26,160.25,46.78870893]
[1752348731967,0.03,160.26,160.25,49.71827316]
[1752348733071,0.03,160.26,160.25,51.36007768]
[1752348733754,0.03,160.26,160.25,139.36007768]
[1752348733955,0.03,160.26,160.25,138.73605272]
[1752348735069,0.03,160.26,160.25,197.19605272]
[1752348735655,0.03,160.26,160.25,192.62468397]
[1752348736353,0.03,160.26,160.25,142.36468397]
[1752348736554,0.03,160.26,160.25,163.90468397]
[1752348739557,0.03,160.26,160.25,75.90468397]
[1752348739756,0.03,160.26,160.25,76.52870893]
[1752348740374,0.03,160.26,160.25,86.52870893]
[1752348740762,0.03,160.26,160.25,99.82007768]
[1752348740961,0.03,160.26,160.25,109.82007768]
[1752348743182,0.03,160.26,160.25,105.24870893]
[1752348744283,0.03,160.26,160.25,105.30870893]
[1752348745360,0.03,160.26,160.25,109.88007768]
[1752348745571,0.03,160.26,160.25,197.88007768]
[1752348745772,0.03,160.26,160.25,197.25605272]
[1752348750284,0.03,160.26,160.25,192.68468397]
[1752348758898,0.03,160.26,160.25,197.25605272]
[1752348759304,0.03,160.26,160.25,192.68468397]
[1752348761110,0.03,160.26,160.25,163.26468397]
[1752348761298,0.03,160.26,160.25,173.26468397]
[1752348761887,0.03,160.26,160.25,173.95468397]
[1752348763289,0.03,160.26,160.25,163.26468397]
[1752348763706,0.03,160.26,160.25,173.26468397]
[1752348764388,0.03,160.26,160.25,163.26468397]
[1752348764702,0.03,160.26,160.25,173.26468397]
[1752348768030,0.03,160.26,160.25,173.95468397]
[1752348768311,0.03,160.26,160.25,163.95468397]
[1752348768485,0.03,160.26,160.25,173.95468397]
[1752348770881,0.03,160.26,160.25,173.26468397]
[1752348771522,0.03,160.26,160.25,191.98468397]
[1752348773210,0.03,160.26,160.25,181.98468397]
[1752348773415,0.03,160.26,160.25,191.98468397]
[1752348773624,0.03,160.26,160.25,181.98468397]
[1752348774001,0.03,160.26,160.25,191.98468397]
[1752348775794,0.03,160.26,160.25,192.67468397]
[1752348778914,0.03,160.26,160.25,181.98468397]
[1752348781711,0.71,160.26,160.25,181.98468397]
[1752348781887,0.71,160.26,160.25,163.26468397]
[1752348782090,0.71,160.26,160.25,75.26468397]
[1752348784321,0.71,160.26,160.25,58.48]
[1752348790128,0.71,160.26,160.25,26.98]
[1752348790314,0.71,160.26,160.25,31.56]
[1752348790625,2.2785,160.26,160.25,31.56]
[1752348801030,0.71,160.26,160.25,31.56]
[1752348803833,0.71,160.26,160.25,0.06]
[1752348803834,2.3029,160.26,160.25,0.06]
[1752348804039,2.3029,160.26,160.25,31.56]
[1752348806221,19.08758397,160.26,160.25,0.06]
[1752348806427,19.08758397,160.26,160.25,31.56]
[1752348809822,2.3029,160.26,160.25,31.56]
[1752348813833,0.71,160.26,160.25,31.56]
[1752348815344,0.03,160.26,160.25,31.56]
[1752348816747,0.03,160.26,160.25,32.88402496]
[1752348822351,0.03,160.26,160.25,31.56]
[1752348827055,0.03,160.26,160.25,32.26]
[1752348828352,0.03,160.26,160.25,31.56]
[1752348832872,0.03,160.26,160.25,32.26]
[1752348833046,0.03,160.26,160.25,32.88402496]
[1752348839171,0.03,160.26,160.25,49.66870893]
[1752348840668,0.03,160.26,160.25,57.47950893]
[1752348846093,0.03,160.26,160.25,145.47950893]
[1752348846377,0.03,160.26,160.25,144.85548397]
[1752348853283,0.03,160.26,160.25,154.85548397]
[1752348860382,0.03,160.26,160.25,136.32468397]
[1752348863902,0.03,160.26,160.25,48.32468397]
[1752348864075,0.03,160.26,160.25,48.94870893]
[1752348865978,0.69,160.26,160.25,31.54]
[1752348875112,0.03,160.26,160.25,48.98468397]
[1752348878725,0.03,160.26,160.25,78.63465509]
[1752348878908,0.03,160.26,160.25,176.63465509]
[1752348879297,0.03,160.26,160.25,173.70668397]
[1752348879613,0.03,160.26,160.25,176.63465509]
[1752348879820,0.03,160.26,160.25,173.70668397]
[1752348880011,0.03,160.26,160.25,176.63465509]
[1752348880400,0.03,160.26,160.25,173.70668397]
[1752348880598,0.03,160.26,160.25,176.63465509]
[1752348880821,0.03,160.26,160.25,178.27664341]
[1752348881025,0.03,160.26,160.25,173.70668397]
[1752348881317,0.03,160.26,160.25,178.27664341]
[1752348881914,0.03,160.26,160.25,173.70668397]
[1752348882121,0.03,160.26,160.25,178.27664341]
[1752348893130,0.03,160.29,160.28,45.48468397]
[1752348893440,0.03,160.29,160.28,170.10855157]
[1752348893640,0.03,160.29,160.28,170.20464341]
[1752348901739,0.03,160.34,160.3,26.78468397]
[1752348901922,0.03,160.34,160.32,45.48468397]
[1752348902115,0.03,160.34,160.33,58.86839756]
[1752348902334,0.03,160.34,160.33,59.58839756]
[1752348903648,0.03,160.34,160.33,78.28839756]
[1752348904142,0.03,160.34,160.33,166.22839756]
[1752348904328,0.03,160.34,160.33,165.60468397]
[1752348905961,0.03,160.34,160.33,192.50468397]
[1752348906428,0.03,160.34,160.33,182.50468397]
[1752348906743,0.03,160.34,160.33,192.50468397]
[1752348906936,0.03,160.34,160.33,192.45468397]
[1752348907337,0.03,160.34,160.33,182.45468397]
[1752348907537,0.03,160.34,160.33,192.45468397]
[1752348907739,0.03,160.34,160.33,197.02194567]
[1752348912757,0.03,160.34,160.33,223.02194567]
[1752348913487,0.03,160.37,160.36,26.78468397]
[1752348913633,0.03,160.37,160.36,170.02554257]
[1752348913840,0.03,160.37,160.36,170.07194567]
[1752348914938,0.03,160.37,160.36,178.09044567]
[1752348918562,0.03,160.37,160.36,204.09044567]
[1752348918743,0.03,160.37,160.36,203.93141316]
[1752348920272,0.2,160.39,160.38,123.16468397]
[1752348920569,0.2,160.39,160.38,169.01291316]
[1752348920767,0.2,160.39,160.38,169.68291316]
[1752348922554,0.2,160.39,160.38,316.58291316]
[1752348922757,0.2,160.4,160.39,45.32565146]
[1752348922961,0.2,160.4,160.39,82.62639342]
[1752348923746,0.2,160.42,160.41,52.62565146]
[1752348923945,0.2,160.42,160.41,107.95631569]
[1752348924146,0.2,160.42,160.41,255.52631569]
[1752348924448,0.2,160.42,160.41,254.90291316]
[1752348928977,0.68,160.45,160.43,113.90565146]
[1752348929269,0.2,160.46,160.43,114.52897627]
[1752348929270,0.71,160.44,160.43,114.52897627]
[1752348929445,0.03,160.44,160.43,145.94897627]
[1752348929646,0.03,160.44,160.43,145.32565146]
[1752348929846,0.71,160.44,160.43,145.32565146]
[1752348932149,0.03,160.44,160.43,145.32565146]
[1752348934079,0.03,160.44,160.43,150.56291316]
[1752348935673,0.03,160.44,160.43,149.89291316]
[1752348936249,0.03,160.44,160.43,145.32565146]
[1752348936575,0.69,160.44,160.43,164.02565146]
[1752348936758,0.69,160.44,160.43,132.60565146]
[1752348936957,0.69,160.44,160.43,164.02565146]
[1752348937364,0.69,160.44,160.43,104.06468397]
[1752348937568,0.69,160.44,160.43,135.48468397]
[1752348940475,0.69,160.44,160.43,118.7]
[1752348940657,0.69,160.44,160.43,31.42]
[1752348947079,0.69,160.44,160.43,48.20468397]
[1752348947283,0.03,160.44,160.43,48.82800878]
[1752348947465,0.03,160.44,160.43,58.66897627]
[1752348948686,0.03,160.44,160.43,48.82800878]
[1752348948980,0.03,160.44,160.43,58.66897627]
[1752348949764,0.03,160.44,160.43,145.94897627]
[1752348950082,0.03,160.44,160.43,145.32565146]
[1752348950886,0.03,160.44,160.43,172.20565146]
[1752348954884,0.03,160.44,160.43,191.59565146]
[1752348956492,0.69,160.44,160.43,190.90565146]
[1752348956790,0.03,160.44,160.43,190.90565146]
[1752348957585,0.69,160.44,160.43,190.90565146]
[1752348959194,0.69,160.44,160.43,181.06468397]
[1752348959389,0.69,160.44,160.43,190.90565146]
[1752348962301,0.69,160.44,160.43,181.06468397]
[1752348965601,0.69,160.44,160.43,190.90565146]
[1752348966302,0.69,160.44,160.43,181.06468397]
[1752348966481,0.03,160.44,160.43,190.90565146]
[1752348966682,0.7,160.44,160.43,162.36468397]
[1752348972706,0.03,160.44,160.43,162.36468397]
[1752348973318,0.03,160.44,160.43,75.08468397]
[1752348973490,0.03,160.44,160.43,75.70800878]
[1752348976688,0.7,160.44,160.43,75.70800878]
[1752348979210,0.7,160.44,160.43,162.98800878]
[1752348979397,0.7,160.44,160.43,162.36468397]
[1752348987035,0.7,160.44,160.43,26.88]
[1752348987195,0.7,160.44,160.41,0.06]
[1752348987196,0.7,160.44,160.42,26.88]
[1752348987524,0.7,160.44,160.43,31.42]
[1752348987525,0.85903251,160.44,160.43,31.42]
[1752348987728,0.85903251,160.44,160.42,26.88]
[1752348988023,0.67,160.43,160.42,26.88]
[1752348988812,0.67,160.43,160.42,58.3]
[1752348991206,0.67,160.43,160.42,75.08468397]
[1752348996625,0.67,160.43,160.42,58.3]
[1752348997402,0.67,160.43,160.42,26.88]
[1752348997823,0.67,160.43,160.41,0.06]
[1752348998619,0.67,160.43,160.42,31.42]
[1752348998817,0.67,160.43,160.41,0.06]
[1752348999330,0.82903251,160.43,160.41,0.06]
[1752349000340,0.82903251,160.43,160.42,31.42]
[1752349000513,0.82903251,160.43,160.41,0.06]
[1752349001012,0.67,160.43,160.41,0.06]
[1752349001208,0.82903251,160.43,160.41,0.06]
[1752349002235,0.82903251,160.43,160.42,31.42]
[1752349002730,0.82903251,160.43,160.41,0.06]
[1752349003410,0.15903251,160.42,160.41,0.06]
[1752349003615,0.82903251,160.43,160.38,16.78468397]
[1752349003815,0.15903251,160.42,160.38,16.78468397]
[1752349004015,0.67,160.41,160.39,26.88]
[1752349004333,0.67,160.41,160.39,58.3]
[1752349006423,0.82903251,160.41,160.39,58.3]
[1752349007541,0.67,160.41,160.39,58.3]
[1752349007757,0.82903251,160.41,160.39,58.3]
[1752349011077,0.85903251,160.41,160.39,58.3]
[1752349011217,0.67,160.4,160.39,58.3]
[1752349013258,0.82903251,160.4,160.39,58.3]
[1752349014871,0.82903251,160.4,160.38,26.94]
[1752349015443,0.82903251,160.4,160.37,26.88]
[1752349015662,0.15903251,160.39,160.37,26.88]
[1752349015849,0.67,160.38,160.37,26.88]
[1752349016175,0.67,160.38,160.37,58.3]
[1752349016471,0.82903251,160.38,160.36,26.88]
[1752349017063,0.15903251,160.37,160.32,16.78468397]
[1752349017256,0.67,160.36,160.32,17.44468397]
[1752349017460,0.15903251,160.37,160.32,17.44468397]
[1752349017672,0.67,160.35,160.33,31.42]
[1752349017853,0.15903251,160.37,160.33,31.42]
[1752349018054,0.67,160.36,160.33,31.42]
[1752349018459,0.15903251,160.37,160.33,31.42]
[1752349018658,0.67,160.35,160.33,31.42]
[1752349020275,0.15903251,160.37,160.33,31.42]
[1752349020446,0.67,160.36,160.33,31.42]
[1752349020651,0.67,160.36,160.33,32.08]
[1752349021967,0.82903251,160.38,160.34,0.66]
[1752349022172,0.82903251,160.38,160.35,31.42]
[1752349022173,0.67,160.37,160.35,31.42]
[1752349023271,0.82903251,160.37,160.35,31.42]
[1752349023565,0.67,160.37,160.35,31.42]
[1752349023772,0.82903251,160.37,160.35,31.42]
[1752349024155,0.82903251,160.37,160.36,26.9]
[1752349024473,0.15903251,160.37,160.36,26.9]
[1752349024882,0.82903251,160.37,160.36,26.9]
[1752349026762,0.15903251,160.36,160.34,26.9]
[1752349026961,0.82903251,160.35,160.33,26.9]
[1752349027163,0.67,160.35,160.33,26.9]
[1752349027380,0.15903251,160.34,160.28,16.78468397]
[1752349027677,0.67,160.33,160.28,16.78468397]
[1752349027877,0.15903251,160.34,160.29,31.44]
[1752349028064,2.28436367,160.39,160.3,16.78468397]
[1752349028065,0.67,160.35,160.3,16.78468397]
[1752349028266,0.15903251,160.34,160.31,32.14]
[1752349028451,0.82903251,160.34,160.31,32.14]
[1752349028653,0.67,160.34,160.31,32.14]
[1752349029388,0.82903251,160.34,160.31,32.14]
[1752349030464,0.15903251,160.37,160.31,32.14]
[1752349030670,0.67,160.36,160.32,17.48468397]
[1752349030870,0.82903251,160.36,160.33,31.44]
[1752349031179,0.67,160.35,160.33,31.44]
[1752349031769,0.82903251,160.35,160.33,31.44]
[1752349032378,0.67,160.35,160.33,31.44]
[1752349033682,0.15903251,160.37,160.33,31.44]
[1752349033982,0.67,160.36,160.33,31.44]
[1752349034179,0.67,160.36,160.34,26.9]
[1752349034372,0.67,160.36,160.35,31.44]
[1752349034890,0.82903251,160.39,160.35,32.14]
[1752349035079,0.67,160.38,160.35,31.44]
[1752349036157,0.82903251,160.4,160.36,0.7]
[1752349036388,0.15903251,160.4,160.37,31.44]
[1752349036683,0.67,160.39,160.37,31.44]
[1752349037060,0.15903251,160.4,160.37,32.14]
[1752349037287,0.82903251,160.4,160.37,31.44]
[1752349037781,0.67,160.4,160.37,32.14]
[1752349038164,0.82903251,160.4,160.37,32.14]
[1752349038889,0.67,160.4,160.37,32.14]
[1752349040184,0.03,160.41,160.38,0.7]
[1752349040363,0.03,160.41,160.39,31.44]
[1752349040563,0.03,160.41,160.39,32.14]
[1752349041291,0.03,160.41,160.39,31.44]
[1752349041486,0.7,160.41,160.39,31.44]
[1752349041675,0.85903251,160.41,160.39,31.44]
[1752349043066,0.67,160.4,160.39,31.44]
[1752349044595,0.67,160.4,160.39,58.34]
[1752349045287,0.82903251,160.4,160.38,26.9]
[1752349045493,0.15903251,160.39,160.38,26.9]
[1752349045783,0.82903251,160.39,160.38,26.9]
[1752349046386,0.82903251,160.39,160.38,58.32]
[1752349046974,0.67,160.39,160.38,58.32]
[1752349047183,0.67,160.39,160.38,31.42]
[1752349047184,0.82903251,160.39,160.38,31.42]
[1752349047388,0.15903251,160.38,160.37,26.9]
[1752349047692,0.82903251,160.38,160.37,26.9]
[1752349047894,0.67,160.38,160.37,26.9]
[1752349048098,0.82903251,160.38,160.37,26.9]
[1752349048495,0.82903251,160.38,160.37,58.32]
[1752349048874,0.67,160.38,160.37,58.32]
[1752349049072,0.82903251,160.38,160.37,58.32]
[1752349049291,0.15903251,160.38,160.37,58.32]
[1752349049581,0.67,160.39,160.37,58.32]
[1752349049771,0.15903251,160.38,160.37,58.32]
[1752349051292,0.67,160.39,160.37,58.32]
[1752349051497,0.82903251,160.39,160.37,58.32]
[1752349053573,0.67,160.39,160.37,58.32]
[1752349053773,0.82903251,160.39,160.37,58.32]
[1752349053994,0.15903251,160.39,160.37,58.32]
[1752349054196,0.15903251,160.38,160.37,58.32]
[1752349054870,0.82903251,160.4,160.37,58.32]
[1752349055090,0.15903251,160.38,160.37,58.32]
[1752349055691,0.67,160.38,160.37,58.32]
[1752349055896,0.82903251,160.38,160.37,58.32]
[1752349056600,0.67,160.38,160.37,58.32]
[1752349056901,0.82903251,160.38,160.37,58.32]
[1752349057697,0.67,160.38,160.37,58.32]
[1752349057887,0.15903251,160.38,160.37,58.32]
[1752349059504,0.84903251,160.38,160.37,58.32]
[1752349060607,0.15903251,160.38,160.37,58.32]
[1752349060809,0.03,160.41,160.37,59.04]
[1752349060810,0.15903251,160.4,160.37,59.04]
[1752349061401,0.69,160.39,160.38,31.42]
[1752349061601,0.15903251,160.39,160.38,31.42]
[1752349061802,0.84903251,160.4,160.38,31.42]
[1752349063905,0.84903251,160.39,160.38,31.42]
[1752349064206,0.84903251,160.4,160.38,31.42]
[1752349069207,0.15903251,160.39,160.38,31.42]
[1752349069412,0.84903251,160.39,160.38,31.42]
[1752349072703,0.84903251,160.39,160.37,26.9]
[1752349073102,0.15903251,160.39,160.37,26.9]
[1752349073299,0.69,160.4,160.37,26.9]
[1752349073505,0.69,160.39,160.37,26.9]
[1752349073706,0.84903251,160.39,160.37,26.9]
[1752349073912,0.84903251,160.39,160.38,31.42]
[1752349074120,0.69,160.39,160.38,31.42]
[1752349074422,0.15903251,160.39,160.38,31.42]
[1752349074827,0.84903251,160.39,160.37,26.9]
[1752349075430,0.69,160.39,160.37,26.9]
[1752349075733,0.84903251,160.39,160.38,0.06]
[1752349076029,0.84903251,160.39,160.37,26.9]
[1752349077404,0.84903251,160.39,160.38,31.42]
[1752349077625,0.84903251,160.39,160.37,26.9]
[1752349079227,0.84903251,160.39,160.38,31.42]
[1752349079426,0.84903251,160.39,160.37,26.9]
[1752349081139,0.84903251,160.39,160.38,31.42]
[1752349081630,0.69,160.39,160.38,31.42]
[1752349081817,0.15903251,160.39,160.38,31.42]
[1752349082024,0.15903251,160.4,160.38,32.14]
[1752349082404,0.72,160.41,160.39,0.72]
[1752349082405,0.18903251,160.41,160.39,0.72]
[1752349082608,0.18903251,160.41,160.4,31.42]
[1752349082609,0.03,160.41,160.4,31.42]
[1752349082832,0.03,160.41,160.4,32.14]
[1752349086622,0.03,160.41,160.4,49.54812536]
[1752349094439,0.03,160.41,160.4,51.07012536]
[1752349094618,0.03,160.41,160.4,18.93012536]
[1752349094821,0.03,160.41,160.4,49.49812536]
[1752349097556,0.03,160.41,160.4,136.77812536]
[1752349097846,0.03,160.41,160.4,136.15468397]
[1752349101848,0.03,160.41,160.4,135.48468397]
[1752349103548,0.03,160.41,160.4,48.20468397]
[1752349104436,0.69,160.41,160.38,87.34]
[1752349104749,0.15903251,160.4,160.37,26.88]
[1752349105141,0.66,160.39,160.34,17.45468397]
[1752349105324,0.66,160.39,160.37,26.88]
[1752349105529,0.66,160.39,160.35,16.78468397]
[1752349105728,0.66,160.39,160.35,17.45468397]
[1752349106226,0.66,160.39,160.36,31.42]
[1752349106544,0.66,160.38,160.36,31.42]
[1752349107052,0.81903251,160.4,160.36,32.09]
[1752349107427,0.66,160.4,160.37,16.78468397]
[1752349107629,0.69,160.41,160.38,31.42]
[1752349107829,0.66,160.4,160.38,31.42]
[1752349108451,0.03,160.41,160.38,32.09]
[1752349108631,0.03,160.41,160.39,0.67]
[1752349108837,0.69,160.41,160.4,31.42]
[1752349114360,0.84903251,160.41,160.4,31.42]
[1752349114739,0.84903251,160.41,160.39,26.9]
[1752349114937,0.66,160.4,160.39,26.9]
[1752349115855,0.66,160.4,160.39,58.32]
[1752349117245,0.81903251,160.4,160.39,58.32]
[1752349118166,0.66,160.4,160.39,58.32]
[1752349118351,0.81903251,160.4,160.39,58.32]
[1752349120473,0.66,160.4,160.39,58.32]
[1752349120978,0.81903251,160.4,160.39,58.32]
[1752349122076,0.66,160.4,160.39,58.32]
[1752349122374,0.81903251,160.4,160.39,58.32]
[1752349123974,0.18903251,160.41,160.39,58.97]
[1752349124168,0.03,160.41,160.39,58.97]
[1752349125263,0.03,160.41,160.39,27.55]
[1752349125475,0.03,160.41,160.4,31.42]
[1752349127494,0.03,160.41,160.4,32.07]
[1752349130071,0.03,160.41,160.4,48.85468397]
[1752349132658,0.73,160.41,160.4,31.42]
[1752349133977,0.03,160.41,160.4,31.42]
[1752349137863,0.03,160.41,160.4,32.07]
[1752349140902,0.03,160.41,160.4,48.85468397]
[1752349142593,0.03,160.41,160.4,49.47812536]
[1752349144175,0.03,160.41,160.4,48.85468397]
[1752349144905,0.03,160.41,160.4,49.47812536]
[1752349145999,0.03,160.41,160.4,18.05812536]
[1752349146296,0.03,160.41,160.4,49.45812536]
[1752349150998,0.03,160.41,160.4,137.45812536]
[1752349151205,0.03,160.41,160.4,136.83468397]
[1752349167327,0.03,160.41,160.4,136.88468397]
[1752349168929,0.03,160.41,160.4,136.18468397]
[1752349169930,0.69,160.41,160.4,136.18468397]
[1752349170726,0.03,160.41,160.4,136.18468397]
[1752349172925,0.03,160.41,160.4,136.88468397]
[1752349175119,0.03,160.41,160.4,136.18468397]
[1752349175320,0.03,160.41,160.4,136.88468397]
[1752349182845,0.03,160.41,160.4,165.41565146]
[1752349185343,0.03,160.41,160.4,155.55468397]
[1752349188724,0.03,160.41,160.4,165.39565146]
[1752349190741,0.03,160.41,160.4,155.55468397]
[1752349192844,0.03,160.41,160.4,165.39565146]
[1752349193148,0.03,160.41,160.4,155.55468397]
[1752349196752,0.03,160.41,160.4,154.87468397]
[1752349201656,0.69,160.41,160.4,136.18468397]
[1752349201949,0.69,160.41,160.4,48.16468397]
[1752349202174,0.69,160.41,160.4,31.38]
[1752349206532,0.69,160.41,160.39,26.9]
[1752349207857,0.69,160.41,160.4,31.38]
[1752349217666,0.84903251,160.41,160.39,26.9]
[1752349217966,0.84903251,160.41,160.4,31.4]
[1752349218174,0.18903251,160.41,160.39,26.9]
[1752349218344,0.7,160.4,160.39,26.9]
[1752349219559,0.7,160.4,160.39,58.3]
[1752349227367,0.03,160.41,160.39,58.3]
[1752349227574,0.03,160.41,160.39,58.97]
[1752349232172,0.03,160.41,160.4,0.67]
[1752349232479,0.03,160.41,160.39,58.97]
[1752349233279,0.03,160.41,160.4,17.45468397]
[1752349233451,0.03,160.41,160.4,16.78468397]
[1752349235289,0.73,160.41,160.4,16.78468397]
[1752349247799,0.73,160.41,160.39,58.3]
[1752349251591,0.03,160.41,160.4,17.44468397]
[1752349252498,0.03,160.41,160.4,16.78468397]
[1752349252699,0.03,160.41,160.4,17.44468397]
[1752349253188,0.03,160.41,160.4,16.78468397]
[1752349259708,0.03,160.41,160.4,17.44468397]
[1752349260994,0.03,160.41,160.4,18.06812536]
[1752349261516,0.03,160.41,160.4,106.06812536]
[1752349261815,0.03,160.41,160.4,115.90909285]
[1752349270802,0.03,160.41,160.4,106.06812536]
[1752349271007,0.03,160.41,160.4,115.90909285]
[1752349272404,0.03,160.41,160.4,134.59909285]
[1752349272604,0.03,160.41,160.4,133.97565146]
[1752349274027,0.03,160.41,160.4,124.13468397]
[1752349274226,0.03,160.41,160.4,133.97565146]
[1752349280936,0.03,160.41,160.4,115.28565146]
[1752349281104,0.03,160.41,160.4,106.06812536]
[1752349281304,0.03,160.41,160.4,115.90909285]
[1752349282625,0.03,160.41,160.4,134.59909285]
[1752349282829,0.03,160.41,160.4,133.97565146]
[1752349290953,0.03,160.41,160.4,124.13468397]
[1752349291364,0.03,160.41,160.4,133.97565146]
[1752349292444,0.03,160.41,160.4,124.13468397]
[1752349293840,0.03,160.41,160.4,133.97565146]
[1752349296554,0.03,160.41,160.4,165.33565146]
[1752349297157,0.03,160.41,160.4,155.49468397]
[1752349297341,0.03,160.41,160.4,165.33565146]
[1752349297546,0.03,160.41,160.4,155.49468397]
[1752349298058,0.03,160.41,160.4,165.33565146]
[1752349299660,0.03,160.41,160.4,155.49468397]
[1752349299859,0.03,160.41,160.4,165.33565146]
[1752349304667,0.74,160.44,160.4,165.33565146]
[1752349304846,0.74,160.44,160.42,16.78468397]
[1752349305047,0.74,160.44,160.43,48.76800878]
[1752349306262,0.74,160.44,160.43,75.64800878]
[1752349310662,0.74,160.44,160.43,163.64800878]
[1752349310969,0.74,160.44,160.43,163.02468397]
[1752349314388,0.24,160.44,160.43,163.02468397]
[1752349321672,0.2,160.46,160.44,16.78468397]
[1752349321979,0.2,160.46,160.45,48.76793108]
[1752349322463,0.2,160.46,160.45,136.76793108]
[1752349322663,0.89,160.46,160.45,136.14468397]
[1752349325573,0.89,160.46,160.45,163.02468397]
[1752349328478,0.89,160.46,160.45,75.02468397]
[1752349328675,0.89,160.46,160.45,58.24]
[1752349350275,0.2,160.46,160.45,75.02468397]
[1752349351192,0.86,160.46,160.45,75.02468397]
[1752349355197,0.2,160.46,160.45,75.02468397]
[1752349358078,0.2,160.46,160.45,75.70468397]
[1752349360900,0.2,160.46,160.45,75.02468397]
[1752349363403,0.9,160.46,160.45,75.02468397]
[1752349366806,0.2,160.46,160.45,75.02468397]
[1752349370610,0.9,160.46,160.45,75.02468397]
[1752349377121,0.9,160.46,160.45,58.22]
[1752349379625,1.05903251,160.46,160.45,58.22]
[1752349380628,0.9,160.46,160.45,58.22]
[1752349380810,1.05903251,160.46,160.45,58.22]
[1752349382496,1.05903251,160.46,160.45,26.88]
[1752349382698,0.15903251,160.45,160.44,0.06]
[1752349382921,0.15903251,160.44,160.41,26.94]
[1752349383124,0.7,160.43,160.41,26.94]